bitfinex-derivatives/quotes_ETHF0:USTF0_20251117
["timestamp","ask_amount","ask_price","bid_price","bid_amount"]
[1763360931437,0.00303877,3191.2,3191.1,1.34939614]
[1763360934538,0.00303877,3191.2,3191.1,0.23048036]
[1763360935240,0.00303877,3191.2,3191.1,1.35099309]
[1763360936342,0.00303877,3191.2,3191.1,0.23048036]
[1763360943451,0.00303877,3191.2,3191.1,1.35149353]
[1763360943649,0.00303877,3191.2,3191.1,2.12107696]
[1763360945449,0.00303877,3191.2,3191.1,1.00006379]
[1763360946046,13.44342338,3192.2,3191.5,0.1444]
[1763360946245,0.50786,3192.4,3192.3,0.2268]
[1763360946448,0.50789,3192.2,3192.1,0.2268]
[1763360947046,0.51037798,3192.2,3192.1,0.2268]
[1763360949147,0.00248798,3192.2,3192.1,0.99532378]
[1763360949350,3.2078,3192.5,3192.4,0.2268]
[1763360949653,3.2078,3192.5,3192.4,1.76384756]
[1763360949840,3.2078,3192.9,3192.5,0.1444]
[1763360950047,3.2078,3192.9,3192.8,0.99532378]
[1763360950243,0.149,3193.5,3192.8,5.86529402]
[1763360950451,0.3914,3193.5,3193.4,0.76852378]
[1763360950749,0.3914,3193.5,3193.3,0.83700616]
[1763360950958,0.2424,3193.2,3193.1,0.83700616]
[1763360951345,0.0022196,3193.2,3193.1,0.0033595]
[1763360951652,0.2446196,3193.2,3193.1,0.0033595]
[1763360953354,0.0022196,3193.2,3193.1,0.0033595]
[1763360953654,0.2446196,3193.2,3193.1,0.0033595]
[1763360954455,1.01314338,3193.2,3193.1,0.0033595]
[1763360954643,0.2424,3192.7,3192.6,3.2078]
[1763360955048,0.3914,3192.5,3192.4,0.00469785]
[1763360955252,1.15992378,3192.5,3192.4,0.00469785]
[1763360955643,1.15992378,3192.5,3192.4,0.00716881]
[1763360959461,0.2421,3191.9,3191.8,3.2078]
[1763360960362,0.2421,3191.9,3191.8,3.2104283]
[1763360961058,0.75004,3191.9,3191.8,3.2104283]
[1763360961461,0.75004,3191.9,3191.8,0.0026283]
[1763360961761,4.88904756,3192.0,3191.0,3.2078]
[1763360961762,0.2421,3191.1,3191.0,3.2078]
[1763360962357,0.76852378,3191.4,3191.0,3.2078]
[1763360962561,0.1442,3191.5,3191.2,0.76852378]
[1763360962860,0.3863,3191.5,3191.2,0.76852378]
[1763360963054,0.2421,3191.3,3191.2,0.76852378]
[1763360963559,0.1442,3191.5,3191.2,0.76852378]
[1763360964662,0.2421,3191.1,3191.0,4.82128234]
[1763360965363,0.65221,3191.5,3191.0,4.82128234]
[1763360965978,0.65221,3191.5,3191.2,0.76852378]
[1763360966563,0.1442,3191.5,3191.2,0.76852378]
[1763360967870,0.50803,3191.4,3191.2,0.76852378]
[1763360968163,0.1442,3191.5,3191.2,0.76852378]
[1763360968466,0.1442,3191.5,3191.0,4.05275856]
[1763360968467,0.1442,3191.5,3191.4,3.2078]
[1763360981371,0.1442,3191.5,3191.4,4.04480616]
[1763360982375,0.1442,3191.5,3191.4,3.2078]
[1763360982566,0.1442,3191.5,3191.4,3.97632378]
[1763360982765,0.1442,3191.5,3191.4,3.2078]
[1763360982966,0.1442,3191.5,3191.4,5.09677024]
[1763360983166,0.1442,3192.0,3191.4,3.97632378]
[1763360983469,0.1442,3192.0,3191.9,0.76852378]
[1763360983670,0.1442,3192.0,3191.7,1.60602359]
[1763360984071,0.1442,3192.0,3191.8,0.77685063]
[1763360984274,0.1442,3192.0,3191.9,0.77685063]
[1763360985365,0.1442,3192.0,3191.9,1.61435044]
[1763360985768,0.3863,3192.0,3191.9,1.61435044]
[1763360986773,1.15482378,3192.0,3191.9,0.77685063]
[1763360989364,5.13114756,3192.0,3191.9,1e-08]
[1763360989670,0.50797,3191.7,3191.6,1.11666641]
[1763360989873,0.3838,3191.5,3191.4,3.2078]
[1763360990073,1.15232378,3191.5,3191.4,3.2078]
[1763360990379,0.3838,3191.5,3191.4,3.4423]
[1763360990872,1.15232378,3191.5,3191.4,3.2078]
[1763360991073,0.2368,3191.3,3191.2,1.35116641]
[1763360991878,0.50802,3191.4,3191.3,0.2345]
[1763360992081,0.74482,3191.4,3191.3,0.2345]
[1763360995984,0.50802,3191.4,3191.3,0.2345]
[1763360996181,1.15232378,3191.5,3191.4,0.2345]
[1763360997982,0.2368,3191.3,3191.2,1.35116641]
[1763360999479,1.00532378,3191.3,3191.2,1.11666641]
[1763360999674,0.2368,3191.2,3191.1,1.11666641]
[1763360999879,0.74486,3191.1,3191.0,1.12461881]
[1763361000076,1.51338378,3191.1,3191.0,1.12461881]
[1763361000381,1.51338378,3191.1,3191.0,0.0079524]
[1763361000777,3.71582,3191.4,3191.3,0.2345]
[1763361000981,3.95262,3191.4,3191.3,0.2345]
[1763361001178,0.2368,3191.1,3191.0,1.35911881]
[1763361001581,0.508,3191.5,3191.0,4.42881881]
[1763361001779,0.74477,3191.7,3191.6,0.2345]
[1763361003378,0.147,3191.5,3191.1,1.11666641]
[1763361003583,0.2368,3191.1,3191.0,4.33241881]
[1763361003782,1.00532378,3191.1,3191.0,3.2157524]
[1763361004683,1.00532378,3191.1,3190.0,1.25706641]
[1763361004684,0.3838,3190.5,3190.0,1.25706641]
[1763361004888,0.2368,3190.1,3190.0,0.3749]
[1763361005186,0.76852378,3190.2,3190.1,0.2345]
[1763361005586,0.77239384,3190.2,3190.1,0.23836567]
[1763361005983,0.00387006,3190.2,3190.1,0.23836567]
[1763361009492,0.00387006,3190.2,3190.1,1.00781455]
[1763361009982,0.00387006,3190.2,3190.1,0.23836567]
[1763361010182,0.00387006,3190.2,3190.1,1.00781455]
[1763361010486,3.2078,3190.6,3190.5,0.3749]
[1763361010687,3.2078,3190.6,3190.5,1.14434888]
[1763361011587,3.44711634,3190.6,3190.5,0.3749]
[1763361011887,3.44711634,3190.6,3190.5,0.2345]
[1763361012581,3.44711634,3190.6,3190.5,0.3749]
[1763361013889,0.74498,3190.4,3190.3,0.2345]
[1763361014188,3.95526634,3190.6,3190.5,0.3749]
[1763361014383,3.71846634,3190.6,3190.5,0.3749]
[1763361014688,3.21031634,3190.6,3190.5,0.3749]
[1763361015185,0.00251634,3190.6,3190.5,0.3749]
[1763361016401,0.00251634,3190.6,3190.5,1.49289021]
[1763361016690,0.23931634,3190.6,3190.5,0.3749]
[1763361017993,0.23931634,3190.6,3190.5,0.2345]
[1763361019887,0.23931634,3190.6,3190.5,0.3943]
[1763361020088,0.00251634,3190.6,3190.5,0.3943]
[1763361020984,0.26221634,3190.6,3190.5,0.3943]
[1763361021290,0.00251634,3190.6,3190.5,0.3943]
[1763361022695,0.26221634,3190.6,3190.5,0.3943]
[1763361022897,0.76787,3190.4,3190.3,1.11799021]
[1763361023085,0.76787,3190.4,3190.2,0.2402]
[1763361023086,0.2597,3190.3,3190.2,0.2402]
[1763361023495,0.2597,3190.5,3190.4,0.2402]
[1763361023697,0.77036634,3190.6,3190.5,0.4]
[1763361025796,0.77036634,3190.6,3190.1,0.00386567]
[1763361026794,3.2078,3190.4,3190.1,0.00386567]
[1763361027001,3.4675,3190.4,3190.3,0.2402]
[1763361027987,0.2597,3190.2,3190.1,0.24406567]
[1763361034605,3.4675,3190.4,3190.3,0.2402]
[1763361036104,3.2078,3190.4,3190.3,0.2402]
[1763361036506,0.26221634,3190.6,3190.5,0.4]
[1763361037204,0.77036634,3190.6,3190.5,0.4]
[1763361039204,0.00251634,3190.6,3190.5,0.4]
[1763361039408,3.2078,3190.8,3190.7,0.2402]
[1763361039711,0.00469785,3190.9,3190.8,0.2402]
[1763361039908,0.00469785,3190.9,3190.8,1.36102521]
[1763361040306,0.00469785,3190.9,3190.8,0.2402]
[1763361040501,0.00715333,3190.9,3190.8,0.2402]
[1763361041299,0.00715333,3190.9,3190.8,1.36102521]
[1763361042207,0.00715333,3190.9,3190.8,0.2402]
[1763361044212,0.2597,3190.7,3190.6,1.36102521]
[1763361044413,0.2597,3190.7,3190.6,0.2402]
[1763361045116,3.2078,3190.8,3190.7,0.2402]
[1763361046610,0.00715333,3190.9,3190.8,0.2402]
[1763361046804,0.00715333,3190.9,3190.8,1.00964888]
[1763361048718,0.24925333,3190.9,3190.8,0.2402]
[1763361049021,1.01870221,3190.9,3190.8,0.2402]
[1763361050518,1.01870221,3190.9,3190.8,1.08009442]
[1763361051218,1.01870221,3190.9,3190.5,0.1598]
[1763361051219,0.75021,3190.8,3190.7,0.83989442]
[1763361051418,0.75021,3190.8,3190.7,1.06569442]
[1763361053724,0.2421,3190.8,3190.7,1.06569442]
[1763361056427,0.77660221,3190.9,3190.8,0.2258]
[1763361056624,0.00715333,3190.9,3190.8,0.2258]
[1763361057125,0.00715333,3190.9,3190.8,1.06569442]
[1763361061229,0.00715333,3190.9,3190.8,0.2258]
[1763361062425,0.75004,3191.9,3191.8,0.2258]
[1763361062632,0.2421,3191.6,3191.5,0.3753]
[1763361062821,0.2421,3191.5,3191.4,0.83971909]
[1763361063131,0.2421,3191.5,3191.2,0.83971909]
[1763361063132,0.75013,3191.3,3191.2,0.83971909]
[1763361063326,0.75013,3191.3,3191.0,0.98921909]
[1763361063327,0.75016,3191.2,3191.0,0.98921909]
[1763361063624,0.2421,3191.1,3191.0,0.3753]
[1763361064720,0.00307881,3191.3,3191.2,0.2258]
[1763361066726,0.24517881,3191.3,3191.2,0.2258]
[1763361066936,1.01419411,3191.3,3191.2,0.2258]
[1763361067431,0.00307881,3191.3,3191.2,0.2258]
[1763361068429,0.2421,3191.2,3191.0,1.26912545]
[1763361068728,0.77209411,3191.3,3191.0,1.49492545]
[1763361068729,0.2421,3191.1,3191.0,1.49492545]
[1763361069527,1.52223411,3191.3,3191.2,0.2258]
[1763361069725,1.52223411,3191.3,3191.2,1.06685338]
[1763361072427,3.21247304,3191.6,3191.5,0.3753]
[1763361072632,3.96256304,3191.6,3191.3,0.84102577]
[1763361072822,0.2421,3191.4,3191.3,1.06682577]
[1763361073431,0.2446626,3191.4,3191.3,1.06682577]
[1763361074838,0.75013,3191.3,3191.2,0.84102577]
[1763361075036,0.75016,3191.1,3191.0,0.1495]
[1763361075330,4.7269753,3191.1,3191.0,0.1495]
[1763361075526,4.7269753,3191.1,3191.0,0.3753]
[1763361076134,4.7269753,3191.1,3190.9,0.84572362]
[1763361076335,0.2421,3191.0,3190.9,1.07152362]
[1763361077027,0.2421,3191.0,3190.9,1.08582362]
[1763361079031,0.2421,3191.0,3190.9,0.00469785]
[1763361080435,0.3405,3191.0,3190.9,0.00469785]
[1763361081334,3.5483,3191.0,3190.9,0.00469785]
[1763361086947,4.3173153,3191.0,3190.9,0.00469785]
[1763361087144,4.2189153,3191.0,3190.9,0.00469785]
[1763361087341,3.4499,3191.0,3190.9,0.24019785]
[1763361087547,3.2078,3191.0,3190.9,0.24019785]
[1763361087847,3.4474,3191.0,3190.9,0.00469785]
[1763361089144,3.5458,3191.0,3190.9,0.00469785]
[1763361089943,3.4474,3191.0,3190.9,0.00469785]
[1763361090546,0.2396,3191.0,3190.9,0.00469785]
[1763361091445,0.2396,3191.0,3190.9,0.24019785]
[1763361091745,3.71587,3191.1,3191.0,0.3811]
[1763361092242,3.2078,3191.1,3191.0,0.3811]
[1763361093848,3.2078,3191.1,3191.0,0.1456]
[1763361094045,3.2078,3191.1,3191.0,0.3811]
[1763361094341,3.4474,3191.1,3191.0,0.3811]
[1763361095247,0.74768,3191.0,3190.9,0.24019785]
[1763361095546,0.74768,3191.0,3190.9,0.00469785]
[1763361095938,0.74768,3191.0,3190.9,0.24019785]
[1763361096644,0.2396,3191.0,3190.9,0.24019785]
[1763361100350,0.2396,3191.0,3190.9,0.00469785]
[1763361101552,1.0086153,3191.0,3190.9,0.00469785]
[1763361102442,1.1070153,3191.0,3190.9,0.00469785]
[1763361102845,1.1070153,3191.0,3190.4,1.67943818]
[1763361102846,0.2396,3190.6,3190.4,0.84102577]
[1763361103036,0.2396,3190.2,3190.1,0.00386567]
[1763361109652,1.0086153,3190.2,3190.1,0.00386567]
[1763361109947,1.0086153,3190.2,3189.8,0.84572362]
[1763361109948,0.235,3189.9,3189.8,0.00469785]
[1763361110158,4.7200653,3189.9,3189.8,0.00469785]
[1763361110752,4.7200653,3189.9,3189.8,0.00825764]
[1763361112358,0.5083,3189.7,3189.1,0.84102577]
[1763361112757,1.0040153,3189.6,3189.5,0.3822]
[1763361113353,1.0040153,3189.6,3189.5,0.00234962]
[1763361113961,1.7730306,3189.6,3189.5,0.00234962]
[1763361115659,1.7730306,3189.6,3189.5,4.962e-05]
[1763361116855,8.5920153,3189.6,3189.5,4.962e-05]
[1763361117355,9.3610306,3189.6,3189.5,4.962e-05]
[1763361119156,1.0040153,3189.6,3189.5,4.962e-05]
[1763361119352,8.5920153,3189.6,3189.5,4.962e-05]
[1763361120268,8.5920153,3189.6,3189.5,0.24034962]
[1763361120463,0.7433,3189.7,3189.6,0.2403]
[1763361121166,1.2773153,3189.7,3189.5,4.962e-05]
[1763361121364,0.7690153,3189.6,3189.5,4.962e-05]
[1763361123666,1.2773153,3189.7,3189.5,4.962e-05]
[1763361124162,0.7690153,3189.6,3189.5,4.962e-05]
[1763361128773,1.5401587,3189.6,3189.5,4.962e-05]
[1763361129167,9.1281587,3189.6,3189.5,4.962e-05]
[1763361133181,0.235,3188.6,3188.5,0.84102577]
[1763361133471,0.235,3188.2,3188.1,0.84102577]
[1763361133678,1.00507935,3188.2,3188.1,1.08132577]
[1763361134081,1.00507935,3188.2,3188.1,0.2403]
[1763361134376,1.00787112,3188.2,3188.1,0.24389395]
[1763361135369,4.21567112,3188.2,3188.1,0.00359395]
[1763361136277,4.98575047,3188.2,3188.1,0.00359395]
[1763361136484,4.21567112,3188.2,3188.1,0.00359395]
[1763361139771,4.98575047,3188.2,3188.1,0.00359395]
[1763361139975,0.73277,3187.9,3187.8,0.00469785]
[1763361140175,1.50284935,3187.9,3187.8,0.00469785]
[1763361140873,1.50284935,3187.9,3187.8,0.00704179]
[1763361142486,0.99427935,3187.9,3187.8,0.00704179]
[1763361143784,0.5087,3187.1,3187.0,0.1419]
[1763361144088,0.2242,3187.1,3187.0,0.3677]
[1763361144585,0.73291,3187.1,3186.5,0.98292577]
[1763361144774,0.77007935,3186.9,3186.8,0.2258]
[1763361145287,0.2242,3186.6,3186.5,0.14987308]
[1763361145489,0.99427935,3186.6,3186.5,0.00797308]
[1763361145989,0.2242,3185.7,3185.6,3.4336]
[1763361146986,0.2278325,3185.7,3185.6,3.43664564]
[1763361147386,0.2278325,3185.7,3185.6,0.22884564]
[1763361148187,0.0036325,3185.7,3185.6,0.22884564]
[1763361154489,0.99791185,3185.7,3185.6,0.22884564]
[1763361155090,0.99791185,3185.7,3185.6,0.00304564]
[1763361156289,1.7679912,3185.7,3185.6,0.00304564]
[1763361156488,0.73317,3185.4,3185.3,0.00317424]
[1763361156691,4.71104935,3185.4,3185.3,0.00317424]
[1763361157590,4.71104935,3185.4,3185.3,0.0065846]
[1763361157888,3.2078,3185.4,3185.3,0.2323846]
[1763361159087,3.432,3185.4,3185.3,0.2323846]
[1763361159795,3.2078,3185.4,3185.3,0.2323846]
[1763361162895,3.432,3185.4,3185.3,0.0065846]
[1763361163099,3.2078,3185.4,3184.4,3.2078]
[1763361163289,0.73329,3184.7,3184.6,0.2258]
[1763361163687,0.73329,3184.7,3184.4,3.2078]
[1763361163688,0.99427935,3184.9,3184.8,0.2258]
[1763361163893,0.77007935,3184.9,3184.8,0.2258]
[1763361164088,1.50329935,3185.2,3185.1,0.2258]
[1763361164396,1.50329935,3185.2,3185.0,0.1362]
[1763361164397,0.2242,3185.1,3185.0,0.1362]
[1763361164701,0.2242,3185.1,3185.0,0.362]
[1763361166906,1.27909935,3185.2,3185.1,0.2258]
[1763361167496,1.50329935,3185.2,3185.1,0.2258]
[1763361168205,0.99427935,3185.2,3185.1,0.2258]
[1763361168400,0.73322,3185.1,3185.0,0.1362]
[1763361168601,0.73322,3185.1,3185.0,0.362]
[1763361169601,0.2242,3185.1,3185.0,0.362]
[1763361169812,0.77007935,3185.2,3185.1,0.2434]
[1763361170005,0.99557935,3185.2,3185.1,0.2434]
[1763361171112,0.73455,3184.9,3184.8,0.00385856]
[1763361171312,4.71242935,3184.9,3184.8,0.00385856]
[1763361172714,4.71242935,3184.9,3184.8,0.24725856]
[1763361173608,5.4825087,3184.9,3184.8,0.00385856]
[1763361173906,0.50911,3184.6,3184.0,4.18502577]
[1763361174104,0.77007935,3184.5,3184.0,4.18502577]
[1763361174316,3.2078,3184.9,3184.7,0.2434]
[1763361174317,0.77007935,3184.8,3184.7,0.2434]
[1763361174907,0.99557935,3184.8,3184.7,0.24723056]
[1763361176212,0.77007935,3184.8,3184.7,0.24723056]
[1763361176605,0.99557935,3184.8,3184.7,0.24723056]
[1763361176815,0.77007935,3184.8,3184.7,0.24723056]
[1763361177212,0.99557935,3184.8,3184.7,0.24723056]
[1763361180122,0.2255,3184.8,3184.7,0.24723056]
[1763361180314,3.71686,3184.9,3184.8,0.2434]
[1763361181121,3.94236,3184.9,3184.8,0.2434]
[1763361181424,0.2255,3184.8,3184.7,0.00383056]
[1763361181616,4.48693935,3184.9,3184.0,0.84565693]
[1763361181617,0.73468,3184.1,3184.0,0.84565693]
[1763361181815,0.2255,3184.0,3183.9,0.84565693]
[1763361182015,0.2255,3183.9,3183.8,0.84565693]
[1763361182316,0.2255,3183.9,3183.8,0.2434]
[1763361182518,0.73473,3183.8,3183.7,0.03141049]
[1763361182715,1.50480935,3183.8,3183.7,0.03383052]
[1763361183220,0.99557935,3183.8,3183.7,0.27723052]
[1763361185120,0.99557935,3183.8,3183.7,0.03383052]
[1763361186215,0.2255,3183.1,3183.0,0.3884]
[1763361186410,4.20337935,3183.3,3183.2,0.2434]
[1763361186921,3.4333,3183.3,3183.2,0.2434]
[1763361187120,0.2255,3183.1,3183.0,0.3884]
[1763361187422,0.2255,3182.8,3182.7,0.2434]
[1763361187630,0.2255,3182.7,3182.6,1.08905693]
[1763361187920,3.43562352,3183.3,3183.2,0.2434]
[1763361188319,0.2255,3182.7,3182.6,0.0039279]
[1763361188617,3.21012352,3183.3,3182.6,0.2473279]
[1763361188618,3.71944352,3183.3,3182.6,0.2473279]
[1763361188930,3.43562352,3183.3,3183.2,0.2434]
[1763361189219,0.73484,3183.1,3183.0,0.3884]
[1763361189521,0.73483,3183.2,3183.1,0.2434]
[1763361190325,0.2255,3183.2,3183.1,0.2434]
[1763361190718,0.73484,3183.1,3182.6,3.2117279]
[1763361191124,0.73486,3183.0,3182.9,0.2434]
[1763361191926,0.2255,3183.0,3182.9,0.2434]
[1763361192231,3.43562352,3183.3,3183.2,0.2434]
[1763361193925,3.21012352,3183.3,3183.2,0.2434]
[1763361194118,3.43562352,3183.3,3183.2,0.2434]
[1763361194429,3.21012352,3183.3,3183.2,0.2434]
[1763361195126,3.43562352,3183.3,3183.2,0.2434]
[1763361196533,3.21012352,3183.3,3183.2,0.2434]
[1763361198030,3.43562352,3183.3,3183.2,0.2316]
[1763361198731,0.22782352,3183.3,3183.2,0.2316]
[1763361199033,0.2241,3183.1,3183.0,0.3766]
[1763361199432,0.2241,3183.1,3182.6,4.05738483]
[1763361199624,0.2241,3183.1,3183.0,0.2372]
[1763361200034,0.2241,3183.1,3183.0,0.3742]
[1763361200232,0.23522352,3183.3,3183.2,0.2372]
[1763361201036,3.44302352,3183.3,3183.2,0.2372]
[1763361201625,0.00232352,3183.3,3183.2,0.2372]
[1763361201831,3.2078,3184.2,3184.1,0.2372]
[1763361202030,3.4407,3184.2,3184.1,0.2372]
[1763361202328,0.2329,3184.2,3184.1,0.2372]
[1763361202533,0.00470537,3184.4,3184.3,0.2372]
[1763361202739,3.2078,3185.1,3185.0,0.3742]
[1763361202927,3.95350923,3185.1,3185.0,0.00310476]
[1763361203535,3.44448923,3185.1,3185.0,0.00310476]
[1763361204527,3.44448923,3185.1,3185.0,0.37730476]
[1763361204726,3.44448923,3185.1,3185.0,0.00310476]
[1763361208327,0.742,3184.6,3184.5,3.2078]
[1763361208527,0.1384,3184.5,3184.0,4.18776387]
[1763361208734,3.2078,3184.6,3184.0,3.3448]
[1763361208936,3.71691,3184.6,3184.0,4.18776387]
[1763361209132,3.2078,3184.6,3184.0,4.18776387]
[1763361209334,0.74208,3184.2,3184.1,0.2372]
[1763361209633,0.2329,3184.1,3184.0,0.00250754]
[1763361210535,0.50914,3184.4,3184.0,0.37670754]
[1763361210742,3.7169,3184.6,3184.0,0.37670754]
[1763361210940,3.7169,3184.6,3184.5,0.2372]
[1763361210941,3.9498,3184.6,3184.5,0.2372]
[1763361211442,3.4407,3184.6,3184.0,3.34730754]
[1763361212239,3.4407,3184.6,3184.5,0.3742]
[1763361212445,3.4407,3184.6,3184.5,0.2372]
[1763361212633,3.4407,3184.6,3184.0,3.34730754]
[1763361212834,3.4407,3184.6,3184.5,0.3742]
[1763361213235,3.2078,3184.6,3184.5,0.3742]
[1763361213435,3.2078,3184.6,3184.0,3.34730754]
[1763361213436,3.4407,3184.6,3184.0,3.34730754]
[1763361213736,3.4407,3184.6,3184.5,0.3742]
[1763361214242,3.94981,3184.6,3184.0,3.34730754]
[1763361214438,0.2329,3184.1,3184.0,3.34730754]
[1763361214644,0.2329,3184.1,3184.0,0.00250754]
[1763361215042,0.50913,3184.4,3184.0,0.37670754]
[1763361215241,3.2078,3184.6,3184.0,3.58450754]
[1763361216144,3.7169,3184.6,3184.0,3.58450754]
[1763361216739,0.2329,3184.1,3184.0,0.00250754]
[1763361217446,0.2329,3184.1,3184.0,0.37670754]
[1763361217648,0.2329,3184.1,3184.0,0.00250754]
[1763361219853,0.2329,3184.1,3184.0,0.37670754]
[1763361220043,0.2329,3184.1,3184.0,0.00250754]
[1763361220246,0.2329,3184.1,3184.0,0.37670754]
[1763361220641,3.4407,3184.6,3184.5,0.3742]
[1763361220848,3.2078,3184.6,3184.5,0.3742]
[1763361222242,3.94981,3184.6,3184.0,4.19027141]
[1763361222550,0.50913,3184.5,3184.0,4.19027141]
[1763361223150,0.50913,3184.5,3184.1,0.84296387]
[1763361223456,3.2078,3184.6,3184.1,0.84296387]
[1763361223654,3.71691,3184.6,3184.1,0.84296387]
[1763361223955,3.71691,3184.6,3184.0,4.19027141]
[1763361224149,0.50907,3184.8,3184.7,0.2372]
[1763361224354,0.23668923,3185.1,3185.0,0.3742]
[1763361224551,0.74571923,3185.1,3184.5,0.97996387]
[1763361225056,0.23668923,3185.1,3184.5,0.97996387]
[1763361225252,0.23668923,3185.1,3185.0,0.3742]
[1763361226953,0.00378923,3185.1,3185.0,0.3742]
[1763361228153,0.00378923,3185.1,3185.0,2.37663688]
[1763361228350,0.00378923,3185.1,3185.0,1.53367301]
[1763361229258,0.00471291,3185.4,3185.3,0.2372]
[1763361229959,0.00471291,3185.4,3185.3,1.08141857]
[1763361230156,0.23461291,3185.4,3185.3,0.84421857]
[1763361230456,0.23461291,3185.4,3185.0,0.137]
[1763361230457,0.2299,3185.3,3185.2,0.84421857]
[1763361230850,0.2299,3185.3,3185.2,1.07281857]
[1763361231251,0.2299,3185.3,3185.2,0.84421857]
[1763361231561,0.2299,3185.1,3185.0,0.84421857]
[1763361233160,0.2299,3185.1,3185.0,1.21851857]
[1763361233455,3.44548543,3185.4,3185.3,0.2286]
[1763361233848,0.2299,3185.1,3185.0,1.21851857]
[1763361234763,0.2299,3184.9,3184.8,0.84421857]
[1763361235353,0.2299,3184.7,3184.6,0.84421857]
[1763361236062,0.2299,3184.7,3184.6,1.07281857]
[1763361236458,3.4377,3184.9,3184.8,0.2286]
[1763361236660,0.2299,3184.7,3184.6,1.07281857]
[1763361237058,3.4377,3184.9,3184.8,0.2286]
[1763361238362,3.71686,3184.9,3184.6,1.07281857]
[1763361238765,3.2078,3184.9,3184.6,1.07281857]
[1763361239866,3.4377,3184.9,3184.8,0.2286]
[1763361241157,3.71686,3184.9,3184.6,0.84421857]
[1763361241363,0.2299,3184.7,3184.6,0.84421857]
[1763361241765,0.2299,3184.7,3184.6,1.07281857]
[1763361241950,3.4377,3184.9,3184.8,0.2286]
[1763361242354,0.2299,3184.7,3184.6,0.84421857]
[1763361242555,0.73898,3184.7,3184.6,0.84421857]
[1763361242765,0.2299,3184.3,3184.2,4.28061857]
[1763361242965,0.50908,3184.7,3184.2,4.28061857]
[1763361243466,3.2078,3184.9,3184.2,4.28061857]
[1763361243667,0.50911,3184.6,3184.2,4.28061857]
[1763361244364,0.50911,3184.6,3184.2,1.07281857]
[1763361245066,0.5091,3184.7,3184.2,1.07281857]
[1763361245366,0.5091,3184.7,3184.3,0.84421857]
[1763361246470,0.2299,3184.3,3184.2,0.84421857]
[1763361246677,0.2299,3184.2,3184.1,0.84421857]
[1763361247358,0.2299,3184.2,3184.1,1.07281857]
[1763361249270,0.2299,3184.2,3184.1,0.84421857]
[1763361250172,0.2299,3184.2,3184.1,1.07281857]
[1763361250576,1.15947301,3184.7,3184.1,1.07281857]
[1763361250875,0.2299,3184.2,3184.1,1.07281857]
[1763361253582,3.4377,3184.5,3184.4,0.2286]
[1763361261984,3.2078,3184.5,3184.4,0.2286]
[1763361262185,3.4468,3184.9,3184.8,0.2353]
[1763361263683,3.2078,3184.9,3184.8,0.2353]
[1763361264085,3.2078,3184.9,3184.8,1.08155337]
[1763361264380,3.4468,3184.9,3184.8,1.08155337]
[1763361267399,3.4468,3184.9,3184.8,0.2353]
[1763361267689,3.2078,3184.9,3184.8,0.2353]
[1763361267895,2.83069522,3184.9,3184.8,1.35933369]
[1763361268093,2.83069522,3184.9,3184.8,0.2353]
[1763361268488,2.83069522,3184.9,3184.8,1.36418354]
[1763361268689,3.06969522,3184.9,3184.8,1.36418354]
[1763361269099,2.83069522,3184.9,3184.8,1.36418354]
[1763361269999,0.50902,3185.1,3184.8,1.36418354]
[1763361270200,0.239,3185.0,3184.9,1.08182106]
[1763361272205,3.95581,3185.2,3185.1,0.2353]
[1763361272395,3.2078,3185.2,3185.1,0.2353]
[1763361272701,3.4468,3185.2,3185.1,0.2353]
[1763361277208,0.239,3185.1,3185.0,1.21892106]
[1763361277805,0.239,3185.1,3185.0,0.84652106]
[1763361278106,0.239,3185.1,3185.0,1.08182106]
[1763361278306,3.95582,3185.2,3185.1,0.2353]
[1763361278705,0.239,3185.1,3185.0,0.98362106]
[1763361279009,0.239,3185.1,3185.0,1.21892106]
[1763361280207,0.239,3185.1,3185.0,0.84652106]
[1763361280911,0.239,3185.1,3185.0,1.08182106]
[1763361281208,0.239,3185.1,3185.0,1.21892106]
[1763361288213,3.71682,3185.2,3185.0,0.3724]
[1763361288413,3.95112,3185.2,3185.1,0.84653707]
[1763361289714,0.2332,3185.1,3185.0,0.3736]
[1763361291217,0.2332,3185.1,3185.0,1.50248354]
[1763361293915,0.74219,3185.3,3185.2,0.2365]
[1763361294116,3.21558543,3185.4,3185.3,0.2365]
[1763361294516,3.44878543,3185.4,3185.3,0.2365]
[1763361295322,3.95776543,3185.4,3185.3,1.08405182]
[1763361295620,3.95776543,3185.4,3185.3,0.84755182]
[1763361296426,4.7296595,3185.4,3185.3,0.84755182]
[1763361298223,0.2332,3185.3,3185.2,0.84755182]
[1763361299024,4.4964595,3185.4,3185.1,0.84755182]
[1763361299025,0.7422,3185.2,3185.1,0.84755182]
[1763361299724,0.74224,3185.0,3184.9,0.84755182]
[1763361299935,3.95004,3185.0,3184.9,0.84755182]
[1763361300316,0.2332,3184.9,3184.8,0.84755182]
[1763361300517,0.2332,3184.7,3184.6,0.84755182]
[1763361300826,0.2332,3184.7,3184.3,0.84755182]
[1763361300827,0.74233,3184.4,3184.3,0.84755182]
[1763361301024,0.74236,3184.2,3184.1,0.84755182]
[1763361301227,0.2332,3184.1,3184.0,0.00250754]
[1763361301529,1.00509407,3184.1,3184.0,0.00250754]
[1763361303321,0.74109,3183.4,3183.3,0.84755182]
[1763361303526,4.48896407,3183.6,3183.5,0.1357]
[1763361303827,4.72076407,3183.6,3183.5,0.3722]
[1763361304028,3.2078,3183.6,3183.5,0.3722]
[1763361304226,3.4396,3183.6,3183.5,0.1391165]
[1763361304528,3.4396,3183.6,3183.5,0.3756165]
[1763361305026,3.2078,3183.6,3183.5,0.3756165]
[1763361306430,0.00471291,3183.7,3183.6,0.2365]
[1763361306924,0.23651291,3183.7,3183.6,0.2365]
[1763361307330,0.00471291,3183.7,3183.6,0.2365]
[1763361307824,0.00471291,3183.7,3183.6,1.00839407]
[1763361308020,3.94867,3184.8,3184.7,0.2365]
[1763361309327,0.2318,3184.8,3184.7,0.2365]
[1763361309537,0.00471291,3185.1,3185.0,0.3722]
[1763361309920,1.12577293,3185.9,3185.0,0.3722]
[1763361309921,3.2078,3186.1,3185.5,0.1357]
[1763361310127,0.2332,3186.1,3186.0,0.2365]
[1763361310522,0.2332,3185.9,3185.8,3.4443]
[1763361310722,0.2332,3185.9,3185.8,3.2078]